fUST/lending_fUST_20260109
["ID","MTS","AMOUNT","RATE_DAILY","PERIOD"]
[401061754,1767897046867,-1500.0,0.00014795,2]
[401061755,1767897046876,-1500.0,0.00014795,2]
[401061756,1767897046886,-1500.0,0.00014795,2]
[401061757,1767897046895,-1500.0,0.00014795,2]
[401061758,1767897046905,-1500.0,0.00014795,2]
[401061759,1767897046914,-1500.0,0.00014795,2]
[401061760,1767897046923,-418.0,0.00014795,2]
[401061761,1767897046933,-7071.0011026,0.00014861,2]
[401061762,1767897046943,-1982.69771169,0.00014916,2]
[401061763,1767897046954,-651.97322479,0.00014916,2]
[401061764,1767897046964,-1512.87309708,0.00014916,2]
[401061765,1767897046974,-2000.0,0.00014916,2]
[401061766,1767897046983,-1047.33377056,0.00014916,2]
[401061767,1767897046992,-1370.82057374,0.00014916,2]
[401061768,1767897047002,-1215.59305316,0.00014916,2]
[401061769,1767897047012,-2000.0,0.00014916,2]
[401061770,1767897047022,-2000.0,0.00014916,2]
[401061771,1767897047031,-2000.0,0.00014916,2]
[401061772,1767897047040,-2000.0,0.00014916,2]
[401061773,1767897047050,-2000.0,0.00014916,2]
[401061774,1767897047059,-2000.0,0.00014916,2]
[401061775,1767897047069,-1798.9777089,0.00014916,2]
[401061776,1767897047079,-462.78755064,0.00014916,2]
[401061777,1767897047088,-1428.52044379,0.00014916,2]
[401061778,1767897047097,-2000.0,0.00014916,2]
[401061779,1767897047106,-1500.0,0.00014916,2]
[401061780,1767897047116,-2000.0,0.00014916,2]
[401061781,1767897047125,-2000.0,0.00014916,2]
[401061782,1767897047135,-1783.80150252,0.00014916,2]
[401061783,1767897047144,-1526.2364852,0.00014916,2]
[401061784,1767897047153,-610.58225543,0.00014916,2]
[401061785,1767897047163,-2000.0,0.00014916,2]
[401061786,1767897047172,-2000.0,0.00014916,2]
[401061787,1767897047181,-500.98834763,0.00014916,2]
[401061788,1767897047190,-418.0,0.00014932,2]
[401061789,1767897047200,-1000.0,0.00014972,2]
[401061790,1767897047210,-492.0,0.00014972,2]
[401061792,1767897047219,-100000.0,0.00015028,2]
[401061794,1767897047229,-800.0,0.00015068,2]
[401061796,1767897047238,-418.0,0.00015069,2]
[401061798,1767897047248,-6320.08765596,0.00015111,2]
[401061800,1767897047257,-2379.21833989,0.00015179,2]
[401061802,1767897047266,-33454.72959,0.00015193,2]
[401061804,1767897047276,-209.40437684,0.00015193,2]
[401061806,1767897047285,-151.0,0.00015193,2]
[401061808,1767897047294,-2773.56790519,0.00015193,2]
[401061810,1767897047303,-437.65888898,0.00015206,2]
[401061812,1767897047313,-802.57879923,0.00015286,6]
[401061814,1767897047322,-1200.0,0.00015316,2]
[401061815,1767897047332,-602.53259662,0.00015342,2]
[401061817,1767897047341,-171.82162916,0.00015342,2]
[401061819,1767897047351,-2000.0,0.00015342,2]
[401061821,1767897047361,-2000.0,0.00015342,2]
[401061823,1767897047370,-1505.51755244,0.00015342,2]
[401061825,1767897047379,-619.88473834,0.00015342,2]
[401061827,1767897047388,-2000.0,0.00015342,2]
[401061829,1767897047397,-1029.61129365,0.00015342,2]
[401061831,1767897047407,-2000.0,0.00015342,2]
[401061833,1767897047416,-500.68920715,0.00015342,2]
[401061835,1767897047428,-730.23234032,0.00015342,2]
[401061837,1767897047438,-1002.96437935,0.00015342,2]
[401061839,1767897047447,-2014.12213244,0.00015342,2]
[401061841,1767897047456,-655.09397851,0.00015342,2]
[401061843,1767897047465,-2000.0,0.00015342,2]
[401061845,1767897047474,-2000.0,0.00015342,2]
[401061847,1767897047483,-542.93732994,0.00015342,2]
[401061849,1767897047493,-2000.0,0.00015342,2]
[401061851,1767897047502,-2000.0,0.00015342,2]
[401061853,1767897047511,-503.14554213,0.00015342,2]
[401061855,1767897047522,-2000.0,0.00015342,2]
[401061857,1767897047531,-1974.34002557,0.00015342,2]
[401061859,1767897047540,-1482.84709438,0.00015342,2]
[401061861,1767897047550,-2000.0,0.00015342,2]
[401061863,1767897047559,-1786.81506182,0.00015342,2]
[401061865,1767897047568,-1506.84567032,0.00015342,2]
[401061867,1767897047578,-2003.80919542,0.00015342,2]
[401061869,1767897047587,-921.00515568,0.00015342,2]
[401061871,1767897047596,-1108.00999349,0.00015342,2]
[401061873,1767897047605,-1700.34918809,0.00015342,2]
[401061875,1767897047616,-1640.67728986,0.00015342,2]
[401061876,1767897047626,-2000.0,0.00015342,2]
[401061878,1767897047635,-500.76011771,0.00015342,2]
[401061880,1767897047644,-2000.0,0.00015342,2]
[401061882,1767897047654,-2000.0,0.00015342,2]
[401061884,1767897047664,-1000.0,0.000154,2]
[401061886,1767897047674,-2500.0,0.00015464,2]
[401061888,1767897047683,-2500.0,0.00015464,2]
[401061890,1767897047694,-2500.0,0.00015464,2]
[401061892,1767897047704,-1010.32213921,0.00015464,2]
[401061894,1767897047713,-506.74415815,0.00015464,2]
[401061896,1767897047722,-2500.0,0.00015464,2]
[401061897,1767897047731,-2500.0,0.00015464,2]
[401061900,1767897047741,-2500.0,0.00015464,2]
[401061902,1767897047751,-1869.5151472,0.00015464,2]
[401061903,1767897047760,-2500.0,0.00015464,2]
[401061905,1767897047770,-2500.0,0.00015464,2]
[401061907,1767897047779,-2500.0,0.00015464,2]
[401061910,1767897047788,-10182.24158774,0.00015677,2]
[401061911,1767897047798,-34692.55458483,0.00015741,2]
[401061913,1767897047807,-217.15233878,0.00015741,2]
[401061915,1767897047818,-151.0,0.00015741,2]
[401061917,1767897047827,-2876.18991768,0.00015741,2]
[401061919,1767897047837,-5754.45318415,0.00015759,2]
[401061921,1767897047847,-1500.0,0.00015864,2]
[401061923,1767897047857,-970.310369,0.00015876,2]
[401061925,1767897047867,-1768.99048573,0.00015886,2]
[401061927,1767897047878,-5304.20527403,0.00015886,2]
[401061929,1767897047887,-1138.28627856,0.0001589,2]
[401061931,1767897047897,-1409.51288327,0.0001589,2]
[401061933,1767897047907,-2586.48750274,0.0001589,2]
[401061935,1767897047916,-2500.0,0.0001589,2]
[401061937,1767897047925,-338.23457806,0.0001589,2]
[401061940,1767897047937,-2046.66896035,0.0001589,2]
[401061942,1767897047946,-2500.0,0.0001589,2]
[401061944,1767897047955,-594.37321714,0.0001589,2]
[401061945,1767897047964,-2145.40081224,0.0001589,2]
[401061947,1767897047974,-2500.0,0.0001589,2]
[401061949,1767897047983,-2500.0,0.0001589,2]
[401061951,1767897047992,-2500.0,0.0001589,2]
[401061953,1767897048002,-1634.65901332,0.0001589,2]
[401061955,1767897048011,-4647.3228475,0.00016,2]
[401061957,1767897048021,-13031.72536416,0.00016005,2]
[401061959,1767897048030,-1410.05192145,0.00016012,2]
[401061961,1767897048039,-2002.92123591,0.00016012,2]
[401061963,1767897048048,-3000.0,0.00016012,2]
[401061965,1767897048057,-3000.0,0.00016012,2]
[401061967,1767897048067,-1869.1892099,0.00016012,2]
[401061969,1767897048076,-3000.0,0.00016012,2]
[401061972,1767897048085,-351.48708989,0.00016012,2]
[401061973,1767897048094,-3000.0,0.00016012,2]
[401061975,1767897048103,-3000.0,0.00016012,2]
[401061977,1767897048112,-2258.0,0.00016132,2]
[401061979,1767897048121,-9035.0,0.00016132,2]
[401061981,1767897048130,-1600.0,0.00016164,2]
[401061983,1767897048140,-5439.05122134,0.00016233,2]
[401061985,1767897048150,-35976.17910447,0.00016289,2]
[401061987,1767897048159,-357.36398593,0.00016289,2]
[401061989,1767897048168,-151.0,0.00016289,2]
[401061991,1767897048177,-2982.60894464,0.00016289,2]
[401061993,1767897048187,-802.57879923,0.00016346,7]
[401061995,1767897048196,-1800.0,0.00016412,2]
[401061997,1767897048205,-500.0,0.00016438,2]
[401061999,1767897048215,-594.35152189,0.00016438,2]
[401062001,1767897048223,-154.86011847,0.00016438,2]
[401062003,1767897048233,-164.10892372,0.00016438,2]
[401062005,1767897048242,-3071.48096018,0.00016438,2]
[401062007,1767897048251,-3026.70356569,0.00016438,2]
[401062009,1767897048260,-3000.0,0.00016438,2]
[401062011,1767897048270,-3000.0,0.00016438,2]
[401062013,1767897048279,-3000.0,0.00016438,2]
[401062015,1767897048287,-1000.0,0.00016469,2]
[401062017,1767897048296,-791.0,0.00016469,2]
[401062019,1767897048304,-200.0,0.00016473,2]
[401062021,1767897048313,-3500.0,0.0001656,2]
[401062023,1767897048322,-3500.0,0.0001656,2]
[401062025,1767897048331,-2532.8743507,0.0001656,2]
[401062027,1767897048341,-3500.0,0.0001656,2]
[401062028,1767897048350,-896.00511375,0.0001656,2]
[401062030,1767897048359,-5000.0,0.00016632,2]
[401062032,1767897048369,-37307.29773133,0.00016837,2]
[401062034,1767897048378,-294.36088308,0.00016837,2]
[401062036,1767897048387,-3092.96547559,0.00016837,2]
[401062038,1767897048396,-2100.0,0.0001696,2]
[401062040,1767897048405,-3500.0,0.00016986,2]
[401062042,1767897048414,-3500.0,0.00016986,2]
[401062044,1767897048424,-3500.0,0.00016986,2]
[401062046,1767897048433,-50227.76823266,0.00017,2]
[401062048,1767897048442,-156358.86996262,0.0001701,3]
[401062050,1767897048451,-4000.0,0.00017108,2]
[401062052,1767897048461,-4000.0,0.00017108,2]
[401062054,1767897048470,-1509.97635533,0.00017108,2]
[401062056,1767897048479,-500.0,0.00017185,2]
[401062057,1767897048488,-5353.24126476,0.00017202,2]
[401062058,1767897048498,-2400.0,0.0001726,2]
[401062059,1767897048508,-38687.66774739,0.00017385,2]
[401062060,1767897048517,-3207.40519818,0.00017385,2]
[401062061,1767897048526,-802.57879923,0.00017407,9]
[401062062,1767897048535,-2400.0,0.00017508,2]
[401062063,1767897048544,-4000.0,0.00017534,2]
[401062064,1767897048554,-4000.0,0.00017534,2]
[401062065,1767897048563,-4000.0,0.00017534,2]
[401062066,1767897048573,-498.72100815,0.00017656,2]
[401062067,1767897048582,-2925.17937214,0.00017656,2]
[401062068,1767897048591,-3162.0,0.00017745,2]
[401062069,1767897048600,-4083.0,0.00017745,2]
[401062070,1767897048609,-479.78804727,0.00017842,2]
[401062071,1767897048622,-1071.85447738,0.00017876,2]
[401062072,1767897048632,-10171.5837719,0.00017933,2]
[401062073,1767897048641,-3326.07919052,0.00017933,2]
[401062074,1767897048651,-150894.00766706,0.00018,2]
[401062075,1767897048661,-3120.51812043,0.00018,5]
[401062076,1767897048670,-5000.0,0.00018018,2]
[401062077,1767897048680,-160.18626186,0.0001805,2]
[401062078,1767897048689,-1807.44944301,0.00018056,2]
[401062079,1767897048702,-4500.0,0.00018082,2]
[401062080,1767897048711,-4500.0,0.00018082,2]
[401062081,1767897048721,-4500.0,0.00018082,2]
[401062082,1767897048730,-71428.6,0.00018082,3]
[401062083,1767897048739,-500.0,0.00018089,2]
[401062084,1767897048748,-1000.0,0.00018116,2]
[401062085,1767897048757,-1000.0,0.00018116,2]
[401062086,1767897048766,-172.18674375,0.0001816,2]
[401062087,1767897048777,-1899.64931956,0.00018356,2]
[401062088,1767897048786,-802.57879923,0.00018468,10]
[401062089,1767897048795,-3449.14412057,0.00018481,2]
[401062090,1767897048805,-2895.64095761,0.0001863,2]
[401062091,1767897048815,-5000.0,0.0001863,2]
[401062092,1767897048824,-5000.0,0.0001863,2]
[401062093,1767897048834,-5439.05122134,0.00018867,2]
[401062094,1767897048843,-780.44,0.000189,2]
[401062095,1767897048852,-125980.80402723,0.000189,5]
[401062096,1767897048863,-303.07879564,0.000189,2]
[401062097,1767897048872,-303.07879564,0.000189,2]
[401062098,1767897048882,-356.47419888,0.00019,20]
[401062099,1767897048891,-3576.76245303,0.00019029,2]
[401062100,1767897048901,-500.0,0.00019041,2]
[401062101,1767897048910,-157.19474322,0.00019041,3]
[401062102,1767897048919,-303.07879564,0.00019089,2]
[401062103,1767897048928,-303.07879564,0.00019089,2]
[401062104,1767897048938,-1667.21136956,0.00019178,2]
[401062105,1767897048948,-5500.0,0.00019178,2]
[401062106,1767897048957,-1502.08,0.000192,2]
[401062107,1767897048967,-20550.55,0.000192,2]
[401062108,1767897048976,-498.42576809,0.00019205,5]
[401062109,1767897048985,-303.07879564,0.00019278,2]
[401062111,1767897049123,-342.66300371,0.00019278,2]
[401062112,1767897049133,-167.4,0.000193,2]
[401062113,1767897049143,-162.93,0.000193,2]
[401062115,1767897049152,-163.99,0.000193,2]
[401062117,1767897049162,-13031.72536416,0.00019428,2]
[401062118,1767897049171,-303.07879564,0.00019467,2]
[401062119,1767897049179,-4427.0,0.00019519,2]
[401062121,1767897049188,-802.57879923,0.00019528,11]
[401062122,1767897049197,-3709.10266379,0.00019577,2]
[401062123,1767897049206,-202.0,0.00019589,3]
[401062124,1767897049215,-303.07879564,0.00019656,2]
[401062126,1767897049225,-6000.0,0.00019726,2]
[401062128,1767897049234,-810.2,0.00019829,2]
[401062129,1767897049243,-454.61819346,0.00019845,4]
[401062130,1767897049252,-1173.39858577,0.00019876,2]
[401062131,1767897049261,-1000.0,0.00019927,2]
[401062132,1767897049270,-1000.0,0.00019927,2]
[401062133,1767897049280,-579.0,0.00019927,2]
[401062134,1767897049289,-1003.0,0.0002,2]
[401062135,1767897049297,-250.0,0.0002,2]
[401062136,1767897049306,-250.4,0.0002,2]
[401062137,1767897049316,-300.26582625,0.0002,2]
[401062138,1767897049325,-151.79957514,0.0002,2]
[401062139,1767897049333,-561.06361585,0.0002,7]
[401062140,1767897049342,-77453.2393471,0.0002,2]
[401062141,1767897049351,-454.61819346,0.00020034,4]
[401062142,1767897049360,-500.0,0.00020043,2]
[401062143,1767897049369,-1041.66666667,0.00020134,2]
[401062144,1767897049378,-454.61819346,0.00020223,4]
[401062146,1767897049388,-6500.0,0.00020274,2]
[401062147,1767897049397,-454.61819346,0.00020412,4]
[401062148,1767897049406,-712.06243302,0.00020447,2]
[401062149,1767897049415,-802.57879923,0.00020589,13]
[401062150,1767897049425,-454.7318696,0.00020601,4]
[401062151,1767897049434,-203.0,0.00020685,3]
[401062152,1767897049444,-20550.55,0.000208,2]
[401062153,1767897049454,-7000.0,0.00020822,2]
[401062154,1767897049463,-987.26,0.00021,7]
[401062155,1767897049472,-599.999999,0.00021,2]
[401062156,1767897049482,-24790.43694266,0.00021,2]
[401062157,1767897049491,-810.2,0.00021046,2]
[401062158,1767897049500,-500.0,0.00021098,2]
[401062159,1767897049510,-6320.08765596,0.00021109,2]
[401062160,1767897049519,-4005.53140952,0.0002137,2]
[401062161,1767897049528,-6198.0,0.00021471,2]
[401062162,1767897049537,-1039.02352417,0.000215,2]
[401062163,1767897049547,-12852.18434421,0.000215,2]
[401062164,1767897049558,-23922.34501141,0.000215,2]
[401062165,1767897049569,-5439.05122134,0.00021501,2]
[401062166,1767897049578,-802.57879923,0.0002165,14]
[401062167,1767897049587,-204.0,0.00021781,5]
[401062168,1767897049597,-1274.94269415,0.00021876,2]
[401062169,1767897049607,-151.17138734,0.00021918,2]
[401062170,1767897049619,-1000.0,0.0002192,10]
[401062171,1767897049629,-1000.0,0.0002192,10]
[401062172,1767897049638,-1000.0,0.0002192,10]
[401062173,1767897049647,-4843.47004095,0.00022,20]
[401062174,1767897049657,-28541.27315898,0.00022,2]
[401062175,1767897049667,-500.0,0.00022208,2]
[401062176,1767897049676,-810.2,0.00022264,2]
[401062177,1767897049686,-383.62,0.000223,2]
[401062178,1767897049696,-875.15,0.000223,7]
[401062179,1767897049705,-1502.08,0.000223,14]
[401062180,1767897049714,-2000.51544348,0.00022413,2]
[401062181,1767897049723,-162.93,0.000225,7]
[401062182,1767897049732,-163.99,0.000225,7]
[401062183,1767897049741,-802.57879923,0.00022711,16]
[401062184,1767897049750,-13031.72536416,0.00022851,2]
[401062185,1767897049761,-206.0,0.00022877,8]
[401062186,1767897049770,-1041.66666667,0.00023,3]
[401062187,1767897049779,-500.0,0.00023319,2]
[401062188,1767897049788,-2000.0,0.00023475,7]
[401062189,1767897049798,-810.2,0.00023481,2]
[401062190,1767897049807,-708.0,0.00023619,2]
[401062191,1767897049817,-802.57879923,0.00023771,17]
[401062192,1767897049827,-5000.0,0.00023858,2]
[401062193,1767897049836,-1376.48680254,0.00023876,2]
[401062194,1767897049845,-208.0,0.00023973,11]
[401062195,1767897049854,-1041.66666667,0.00024,7]
[401062196,1767897049863,-1000.0,0.00024112,10]
[401062197,1767897049873,-1000.0,0.00024112,10]
[401062198,1767897049882,-1000.0,0.00024112,10]
[401062199,1767897049891,-715.0,0.00024112,10]
[401062200,1767897049902,-5439.05122134,0.00024135,2]
[401062201,1767897049911,-452487.29550047,0.00024142,2]
[401062202,1767897049921,-50264.40458466,0.000242,2]
[401062203,1767897049930,-2000.0,0.00024302,7]
[401062204,1767897049940,-500.0,0.00024485,2]
[401062205,1767897049948,-156750.63074783,0.0002465,2]
[401062206,1767897049959,-513.88250982,0.0002465,2]
[401062207,1767897049968,-500.0,0.00024658,2]
[401062208,1767897049978,-810.2,0.00024698,2]
[401062209,1767897049987,-20550.55,0.000247,2]
[401062210,1767897049996,-71428.56,0.000247,3]
[401062211,1767897050006,-16824.61855787,0.00024774,2]
[401062212,1767897050015,-500.0,0.00024795,2]
[401062213,1767897050024,-415601.364059,0.000248,2]
[401062214,1767897050034,-151.0,0.000248,7]
[401062215,1767897050043,-151.0,0.000248,2]
[401062216,1767897050053,-802.57879923,0.00024832,18]
[401062217,1767897050062,-151.0,0.000249,7]
[401062218,1767897050072,-151.0,0.000249,7]
[401062219,1767897050081,-151.0,0.000249,7]
[401062220,1767897050091,-650526.970998,0.000249,2]
[401062221,1767897050100,-757.340513,0.000249,7]
[401062222,1767897050110,-757.340513,0.000249,7]
[401062223,1767897050118,-757.340513,0.000249,7]
[401062224,1767897050127,-757.340513,0.000249,7]
[401062225,1767897050137,-151.0,0.000249,7]
[401062226,1767897050146,-151.0,0.000249,7]
[401062227,1767897050155,-151.0,0.000249,7]
[401062228,1767897050164,-151.0,0.000249,7]
[401062229,1767897050174,-179.188398,0.000249,7]
[401062230,1767897050182,-2391.210697,0.000249,7]
[401062231,1767897050191,-2391.210697,0.000249,7]
[401062232,1767897050200,-151.0,0.000249,7]
[401062233,1767897050209,-2391.210697,0.000249,7]
[401062234,1767897050218,-151.0,0.000249,7]
[401062235,1767897050227,-151.0,0.000249,7]
[401062236,1767897050236,-2391.210697,0.000249,7]
[401062237,1767897050245,-151.0,0.000249,7]
[401062238,1767897050255,-151.0,0.000249,7]
[401062239,1767897050264,-262.112916,0.000249,7]
[401062240,1767897050273,-151.0,0.000249,7]
[401062241,1767897050283,-151.0,0.000249,7]
[401062242,1767897050293,-341.324064,0.000249,7]
[401062243,1767897050302,-341.324064,0.000249,7]
[401062244,1767897050312,-341.324064,0.000249,7]
[401062245,1767897050322,-151.0,0.000249,7]
[401062246,1767897050332,-341.324064,0.000249,7]
[401062247,1767897050342,-195.610594,0.000249,7]
[401062248,1767897050352,-195.610594,0.000249,7]
[401062249,1767897050362,-151.0,0.000249,7]
[401062250,1767897050372,-195.610594,0.000249,7]
[401062251,1767897050381,-153.60505,0.000249,7]
[401062252,1767897050390,-195.610594,0.000249,7]
[401062253,1767897050398,-500.0,0.00024932,2]
[401062254,1767897050408,-167.0,0.00025,7]
[401062255,1767897050418,-184.0,0.00025,7]
[401062256,1767897050427,-559.59362836,0.00025,15]
[401062257,1767897050436,-2662.11877043,0.00025,2]
[401062258,1767897050445,-2673.80811109,0.00025,2]
[401062259,1767897050454,-20757.85955183,0.00025,2]
[401062260,1767897050464,-10364.0,0.00025,2]
[401062261,1767897050473,-500.0,0.00025,2]
[401062262,1767897050482,-300.0,0.00025,30]
[401062263,1767897050492,-1557.93414873,0.00025,2]
[401062264,1767897050501,-759.14155668,0.00025,2]
[401062265,1767897050510,-1041.66666667,0.00025,7]
[401062266,1767897050520,-209.0,0.00025068,15]
[401062267,1767897050530,-500.0,0.00025069,2]
[401062268,1767897050540,-1502.08,0.000251,14]
[401062269,1767897050552,-2000.0,0.00025128,7]
[401062270,1767897050562,-579.94263287,0.000252,5]
[401062271,1767897050572,-250.0,0.00025205,2]
[401062272,1767897050581,-5000.0,0.00025302,2]
[401062273,1767897050590,-900.0,0.00025469,3]
[401062274,1767897050599,-1000.0,0.000255,2]
[401062275,1767897050610,-35714.28,0.000257,3]
[401062276,1767897050623,-500.0,0.00025709,2]
[401062277,1767897050632,-350.0,0.00025753,2]
[401062278,1767897050641,-1478.03091092,0.00025876,2]
[401062279,1767897050650,-167.0,0.0002589,7]
[401062280,1767897050660,-802.57879923,0.00025893,20]
[401062281,1767897050669,-810.2,0.00025916,2]
[401062282,1767897050678,-2000.0,0.00025954,7]
[401062283,1767897050689,-286715.12312919,0.00026,30]
[401062284,1767897050698,-17467.00445744,0.00026,2]
[401062285,1767897050707,-161.0,0.00026,5]
[401062286,1767897050717,-1041.66666667,0.00026,30]
[401062287,1767897050728,-194.59744594,0.0002616,2]
[401062288,1767897050737,-210.0,0.00026164,19]
[401062289,1767897050747,-875.15,0.000262,7]
[401062290,1767897050756,-13031.72536416,0.00026274,2]
[401062291,1767897050766,-700.8992001,0.00026282,7]
[401062292,1767897050776,-450.0,0.00026301,2]
[401062293,1767897050785,-1200.0,0.00026333,7]
[401062294,1767897050794,-1200.0,0.00026356,7]
[401062295,1767897050804,-500.0,0.00026403,7]
[401062296,1767897050813,-162.93,0.000265,7]
[401062297,1767897050822,-163.99,0.000265,7]
[401062298,1767897050831,-1000.0,0.00026523,30]
[401062299,1767897050840,-1000.0,0.00026523,30]
[401062300,1767897050850,-1000.0,0.00026523,30]
[401062301,1767897050859,-200.0,0.0002654,14]
[401062302,1767897050868,-383.62,0.000266,2]
[401062303,1767897050878,-5000.0,0.00026747,2]
[401062304,1767897050889,-5439.05122134,0.00026768,2]
[401062305,1767897050899,-2000.0,0.0002678,7]
[401062306,1767897050908,-20550.55,0.000268,2]
[401062307,1767897050918,-1041.66666667,0.000268,30]
[401062308,1767897050927,-550.0,0.00026849,2]
[401062309,1767897050940,-500.0,0.00026884,7]
[401062310,1767897050950,-802.57879923,0.00026953,21]
[401062311,1767897050959,-500.0,0.00026995,2]
[401062312,1767897050968,-1766.13018199,0.00027,2]
[401062313,1767897050977,-600.0,0.00027,14]
[401062315,1767897050987,-75040.16705244,0.00027,30]
[401062317,1767897050997,-1200.0,0.00027087,7]
[401062319,1767897051006,-6320.08765596,0.00027106,2]
[401062320,1767897051015,-281.28077948,0.00027108,7]
[401062322,1767897051024,-180.03780794,0.00027122,2]
[401062323,1767897051033,-1200.0,0.00027132,7]
[401062324,1767897051042,-810.2,0.00027133,2]
[401062325,1767897051052,-2373.26906487,0.00027232,2]
[401062326,1767897051061,-218.96,0.00027241,2]
[401062327,1767897051071,-230.27,0.00027241,2]
[401062328,1767897051081,-233.0,0.0002726,24]
[401062329,1767897051090,-1502.08,0.000273,14]
[401062330,1767897051099,-1200.0,0.00027376,7]
[401062331,1767897051109,-1963.69,0.00027397,2]
[401062332,1767897051118,-223.85462441,0.00027397,2]
[401062333,1767897051127,-650.0,0.00027397,5]
[401062334,1767897051137,-300.0,0.00027397,2]
[401062335,1767897051146,-300.0,0.00027397,2]
[401062336,1767897051155,-300.0,0.00027397,2]
[401062337,1767897051164,-300.0,0.00027397,2]
[401062338,1767897051173,-300.0,0.00027397,2]
[401062339,1767897051182,-300.0,0.00027397,2]
[401062340,1767897051191,-300.0,0.00027397,2]
[401062341,1767897051200,-300.0,0.00027397,2]
[401062342,1767897051209,-300.0,0.00027397,2]
[401062343,1767897051219,-517.95,0.00027397,15]
[401062344,1767897051228,-500.0,0.00027397,5]
[401062345,1767897051238,-300.0,0.00027397,5]
[401062346,1767897051248,-157.24522628,0.00027397,5]
[401062347,1767897051257,-514.97749556,0.00027397,5]
[401062348,1767897051266,-500.0,0.00027403,7]
[401062349,1767897051275,-500.0,0.00027474,7]
[401062350,1767897051285,-45941.24138367,0.000275,2]
[401062351,1767897051295,-1992.0,0.00027552,2]
[401062352,1767897051304,-1200.0,0.00027569,7]
[401062353,1767897051313,-1041.66666667,0.000276,30]
[401062354,1767897051323,-2000.0,0.00027607,7]
[401062355,1767897051333,-2373.26906487,0.0002763,2]
[401062356,1767897051342,-35714.28,0.000277,3]
[401062357,1767897051351,-4323.22837725,0.0002772,2]
[401062358,1767897051360,-151.0,0.0002772,2]
[401062359,1767897051369,-1000.0,0.00027777,5]
[401062360,1767897051378,-160.0,0.00027843,3]
[401062361,1767897051387,-2373.26906487,0.00027856,2]
[401062362,1767897051396,-1579.5750193,0.00027876,2]
[401062363,1767897051406,-875.15,0.000279,7]
[401062364,1767897051416,-1781.0,0.00027903,2]
[401062365,1767897051425,-1992.0,0.0002792,2]
[401062366,1767897051435,-1000.0,0.00027945,5]
[401062367,1767897051444,-750.0,0.00027945,5]
[401062368,1767897051454,-600.0,0.00027945,5]
[401062369,1767897051463,-250.0,0.00027945,5]
[401062370,1767897051472,-500.0,0.00027959,7]
[401062371,1767897051481,-602916.82320641,0.00027998,2]
[401062372,1767897051491,-15319.9145818,0.00028,2]
[401062373,1767897051500,-520.06110599,0.00028,2]
[401062374,1767897051510,-1605.05759846,0.00028014,23]
[401062375,1767897051519,-1781.0,0.00028042,2]
[401062376,1767897051528,-1781.0,0.00028157,7]
[401062377,1767897051538,-5000.0,0.00028191,2]
[401062378,1767897051548,-2373.26906487,0.00028214,2]
[401062379,1767897051557,-1781.0,0.00028227,2]
[401062380,1767897051566,-1992.0,0.00028271,2]
[401062381,1767897051575,-900.0,0.00028294,7]
[401062382,1767897051585,-162.93,0.000283,7]
[401062383,1767897051594,-163.99,0.000283,7]
[401062384,1767897051603,-500.0,0.00028344,5]
[401062385,1767897051613,-2373.26906487,0.00028347,2]
[401062386,1767897051624,-810.2,0.00028351,3]
[401062387,1767897051633,-1781.0,0.00028355,2]
[401062388,1767897051643,-231.0,0.00028356,29]
[401062389,1767897051652,-20550.55,0.000284,2]
[401062390,1767897051662,-2000.0,0.00028433,7]
[401062391,1767897051671,-5016.95882183,0.0002849,2]
[401062392,1767897051680,-850.0,0.00028493,5]
[401062393,1767897051691,-1345.80901206,0.00028493,5]
[401062394,1767897051700,-900.0,0.00028493,5]
[401062395,1767897051710,-350.0,0.00028493,5]